bitfinex/quotes_ETHUSD_20241030
["timestamp","ask_amount","ask_price","bid_price","bid_amount"]
[1730286993269,3.61767691,2675.6,2674.6,0.13690471]
[1730286993634,3.61767691,2675.3,2674.6,0.13690471]
[1730286993948,3.61767691,2675.3,2674.1,0.01]
[1730286994267,3.61767691,2675.3,2674.3,0.8232]
[1730286994822,3.61767691,2674.7,2674.4,0.13209609]
[1730286995133,3.61767691,2674.7,2674.3,0.8232]
[1730286995537,3.61767691,2675.0,2674.3,0.8232]
[1730286996080,3.61767691,2674.7,2674.3,0.8232]
[1730287000258,3.61767691,2675.0,2674.3,0.8232]
[1730287001464,3.61767691,2674.7,2674.3,0.8232]
[1730287004468,3.61767691,2675.0,2674.4,0.86197652]
[1730287004672,3.61767691,2675.0,2674.4,0.7872]
[1730287004900,3.61767691,2675.0,2674.5,0.07477158]
[1730287005205,7.12,2675.5,2674.6,0.787]
[1730287005206,3.61767691,2675.3,2674.6,0.787]
[1730287005709,3.61767691,2675.3,2674.7,0.12686133]
[1730287006008,3.61767691,2675.3,2674.8,0.787]
[1730287007073,3.61767691,2675.0,2674.8,0.787]
[1730287012523,3.61767691,2675.0,2674.0,0.7598]
[1730287012845,3.61767691,2675.0,2674.2,0.7598]
[1730287013434,3.61767691,2675.0,2674.4,0.7598]
[1730287013836,3.61767691,2675.0,2674.5,0.12681852]
[1730287014000,3.61767691,2675.0,2674.6,0.7598]
[1730287014325,3.61767691,2675.0,2674.7,0.12681852]
[1730287014838,3.61767691,2675.3,2674.8,0.8203]
[1730287015209,3.61767691,2675.3,2674.9,0.12676429]
[1730287015610,3.61767691,2675.3,2674.4,1.1948]
[1730287015806,3.61767691,2675.3,2674.5,0.89506144]
[1730287016048,3.61767691,2675.3,2674.5,1.02182573]
[1730287016421,3.61767691,2675.6,2674.7,0.8203]
[1730287016628,3.61767691,2675.6,2674.8,0.55]
[1730287016813,3.61767691,2675.6,2674.9,0.8203]
[1730287017024,3.61767691,2675.6,2674.9,0.94706429]
[1730287018571,3.61767691,2675.6,2675.1,0.7551]
[1730287019034,3.61767691,2675.6,2675.2,0.20151457]
[1730287020077,0.58514084,2675.7,2675.3,0.7689]
[1730287020241,0.1,2676.4,2675.3,0.7689]
[1730287020242,3.61767691,2676.2,2675.3,0.7689]
[1730287020546,0.5850251,2676.1,2675.3,0.7689]
[1730287021464,3.61767691,2675.9,2675.4,0.12676429]
[1730287021985,3.61767691,2675.9,2675.3,0.7689]
[1730287022275,3.61767691,2675.9,2675.4,0.20150687]
[1730287022941,3.61767691,2675.9,2675.4,0.12676429]
[1730287023573,3.61767691,2675.9,2675.3,0.7689]
[1730287025059,3.61767691,2675.9,2675.4,0.07474271]
[1730287025255,3.61767691,2675.9,2675.4,0.20145445]
[1730287026541,0.5850251,2676.1,2675.4,0.12671174]
[1730287026782,3.61767691,2675.6,2675.4,0.12671174]
[1730287026983,4.84767691,2675.6,2674.9,0.7806]
[1730287027169,3.61767691,2675.0,2674.1,0.7806]
[1730287027358,3.61767691,2675.0,2674.2,0.12209143]
[1730287027556,3.61767691,2675.0,2674.0,0.01]
[1730287027557,3.61767691,2675.0,2674.3,0.7933]
[1730287028190,3.61767691,2674.7,2674.3,0.7933]
[1730287030268,3.61767691,2675.0,2674.3,0.7933]
[1730287030470,3.61767691,2675.0,2674.4,0.07477626]
[1730287030675,3.61767691,2675.0,2674.3,0.7933]
[1730287031492,3.61767691,2675.3,2674.5,0.7755]
[1730287031686,3.61767691,2675.3,2674.7,0.7617]
[1730287031855,3.61767691,2675.3,2674.8,0.07476179]
[1730287032279,3.61767691,2675.3,2674.9,0.12225405]
[1730287032787,3.61767691,2675.3,2675.1,0.7947]
[1730287033156,3.61767691,2675.3,2675.2,0.12220269]
[1730287033347,3.61767691,2675.3,2675.1,0.7947]
[1730287033698,3.61767691,2675.3,2675.2,0.12220269]
[1730287034102,3.61767691,2675.3,2674.5,0.8288]
[1730287034256,3.61767691,2674.9,2674.5,0.8288]
[1730287034750,3.61767691,2674.9,2674.6,0.12219413]
[1730287034955,3.61767691,2674.9,2674.5,0.8288]
[1730287035202,3.61767691,2674.9,2674.6,0.12219413]
[1730287035371,3.61767691,2674.9,2674.6,0.07476953]
[1730287035897,3.61767691,2674.9,2674.7,0.12219413]
[1730287036304,3.61767691,2675.2,2674.8,0.7523]
[1730287040210,3.61767691,2674.9,2674.0,0.3745]
[1730287040374,3.61767691,2674.9,2674.1,0.7988]
[1730287040573,3.61767691,2674.9,2674.1,0.92099413]
[1730287041217,3.61767691,2674.6,2674.1,0.92099413]
[1730287041517,3.61767691,2674.6,2674.1,0.7988]
[1730287042321,3.61767691,2674.3,2674.1,0.7988]
[1730287042983,3.61767691,2674.3,2674.2,0.12232823]
[1730287043296,3.61767691,2674.3,2674.1,0.7988]
[1730287043810,3.61767691,2674.3,2674.2,0.12232823]
[1730287044126,3.61767691,2674.3,2674.1,0.7988]
[1730287044496,3.61767691,2674.3,2674.2,0.12232823]
[1730287045035,3.61767691,2674.3,2674.1,0.7988]
[1730287045399,3.61767691,2674.3,2674.2,0.12232823]
[1730287045727,3.61767691,2674.3,2673.6,0.8004]
[1730287045951,3.61767691,2674.3,2674.2,0.12232823]
[1730287046223,3.61767691,2674.3,2673.8,0.07478727]
[1730287046296,3.61767691,2674.3,2674.2,0.12232823]
[1730287046494,3.61767691,2674.3,2673.8,0.07478727]
[1730287046696,3.61767691,2674.6,2674.2,0.12250803]
[1730287046920,3.61767691,2674.6,2673.6,0.8004]
[1730287047134,3.61767691,2674.0,2673.6,1.25791404]
[1730287047338,0.8262,2674.2,2673.7,0.12250803]
[1730287047733,0.8262,2674.2,2673.0,0.83521569]
[1730287049416,0.8262,2674.2,2673.1,0.11875107]
[1730287049638,3.61767691,2673.6,2673.0,0.83521569]
[1730287049796,3.61767691,2673.6,2673.1,0.11875107]
[1730287049995,3.61767691,2673.6,2673.0,0.83521569]
[1730287050192,3.61767691,2673.6,2673.1,0.11875107]
[1730287050415,3.61767691,2673.6,2673.0,0.83521569]
[1730287050626,3.61767691,2673.6,2673.1,0.11875107]
[1730287050806,3.61767691,2673.6,2673.0,0.83521569]
[1730287051028,3.61767691,2673.6,2673.1,0.11875107]
[1730287051241,3.61767691,2673.6,2673.0,0.83521569]
[1730287051618,3.61767691,2673.6,2673.1,0.11881961]
[1730287051823,3.61767691,2673.6,2673.0,0.83521569]
[1730287052249,3.61767691,2673.3,2673.0,0.83521569]
[1730287052520,3.61767691,2673.3,2673.0,0.05611569]
[1730287054653,1.9903,2673.7,2673.0,0.05611569]
[1730287054654,3.61767691,2673.6,2673.1,0.7846]
[1730287056164,3.61767691,2673.3,2672.7,0.7593]
[1730287056964,3.61767691,2673.3,2672.8,0.11890817]
[1730287057267,3.61767691,2673.3,2672.7,0.7593]
[1730287057627,3.61767691,2673.3,2672.8,0.11922513]
[1730287057938,3.61767691,2673.3,2672.7,0.7593]
[1730287058343,3.61767691,2673.3,2672.8,0.11922513]
[1730287058556,3.61767691,2673.3,2672.8,0.19404405]
[1730287058752,3.61767691,2673.3,2672.7,0.7593]
[1730287059172,3.61767691,2673.3,2672.8,0.19406121]
[1730287059686,3.61767691,2673.3,2672.8,0.07481894]
[1730287059984,3.61767691,2673.3,2672.8,0.07481896]
[1730287060151,3.61767691,2673.6,2672.7,0.7732]
[1730287060357,3.61767691,2673.6,2672.8,0.55]
[1730287060570,1.23,2673.7,2673.1,0.7732]
[1730287060759,1.23,2673.7,2673.3,0.7732]
[1730287061281,3.61767691,2673.9,2673.4,0.11924227]
[1730287061590,3.61767691,2673.9,2673.5,0.7913]
[1730287064567,3.61767691,2673.6,2673.3,0.8094]
[1730287067206,3.61767691,2673.6,2673.4,0.11916514]
[1730287068240,3.61767691,2673.6,2672.9,0.8274]
[1730287068241,0.8011,2673.5,2672.9,0.8274]
[1730287068384,3.61767691,2673.1,2672.9,0.8274]
[1730287068766,3.61767691,2673.4,2672.9,0.8274]
[1730287069412,3.61767691,2673.4,2673.0,0.07481496]
[1730287069575,3.61767691,2673.4,2672.9,0.8274]
[1730287071603,3.61767691,2673.7,2673.0,0.07481295]
[1730287071766,3.61767691,2673.7,2673.1,0.7564]
[1730287071965,3.61767691,2674.0,2673.3,0.7564]
[1730287072168,3.61767691,2674.0,2673.5,0.8298]
[1730287072565,3.61767691,2674.0,2673.6,0.11917373]
[1730287074197,3.61767691,2674.0,2673.7,0.7878]
[1730287074368,3.61767691,2674.0,2673.8,0.11903947]
[1730287074709,3.61767691,2674.0,2673.7,0.7878]
[1730287074864,3.61767691,2674.0,2673.9,0.11904232]
[1730287075119,3.61767691,2674.0,2673.7,0.7878]
[1730287075497,3.61767691,2674.0,2673.8,0.11904232]
[1730287075890,3.61767691,2674.0,2673.7,0.7878]
[1730287076099,3.61767691,2674.0,2673.9,0.1190309]
[1730287076408,3.61767691,2674.0,2673.7,0.7878]
[1730287076710,3.61767691,2674.0,2673.8,0.1190309]
[1730287076909,0.39061139,2673.9,2673.8,0.1190309]
[1730287077211,3.61767691,2674.0,2673.8,0.1190309]
[1730287077511,3.61767691,2674.0,2673.7,0.7878]
[1730287077804,3.61767691,2674.0,2673.9,0.1190309]
[1730287078106,3.61767691,2674.0,2673.7,0.7878]
[1730287078489,3.61767691,2674.0,2673.8,0.1190309]
[1730287078884,3.61767691,2674.0,2673.7,0.7878]
[1730287079083,3.61767691,2674.0,2673.9,0.1190309]
[1730287079399,3.61767691,2674.0,2673.7,0.7878]
[1730287079707,3.61767691,2674.0,2673.8,0.1190309]
[1730287080068,3.61767691,2674.0,2673.7,0.7878]
[1730287080905,3.61767691,2674.0,2673.8,0.1190309]
[1730287081112,0.8154,2673.9,2673.8,0.1190309]
[1730287081405,0.8154,2673.9,2673.5,0.8219]
[1730287083415,3.61767691,2674.0,2673.5,0.8219]
[1730287084741,3.61767691,2673.7,2673.0,0.55]
[1730287085078,3.61767691,2673.7,2673.1,0.11902517]
[1730287085272,3.61767691,2673.7,2673.2,0.773]
[1730287085807,3.61767691,2673.7,2673.3,0.11902517]
[1730287086111,3.61767691,2673.7,2673.2,0.773]
[1730287086406,3.61767691,2673.7,2673.0,0.55]
[1730287086580,3.61767691,2673.7,2673.3,0.79]
[1730287086910,3.61767691,2674.0,2673.5,0.55]
[1730287087111,1.23,2674.3,2673.6,0.7747]
[1730287087317,4.84767691,2674.3,2673.6,0.7747]
[1730287087518,4.84767691,2674.3,2673.7,0.11903089]
[1730287087812,3.61767691,2674.0,2673.6,0.7747]
[1730287088714,3.61767691,2674.0,2673.7,0.1189652]
[1730287088915,3.61767691,2674.0,2673.6,0.7747]
[1730287089134,1.23,2674.3,2673.8,0.1189652]
[1730287089419,3.61767691,2673.9,2673.3,0.828]
[1730287090377,0.8324,2673.8,2673.3,0.828]
[1730287094896,3.61767691,2673.6,2673.3,0.828]
[1730287095234,3.61767691,2673.6,2672.9,0.3742]
[1730287095635,3.61767691,2673.6,2673.0,0.11901948]
[1730287097598,3.61767691,2673.6,2672.8,1.1567]
[1730287097799,3.61767691,2673.6,2672.9,0.11901948]
[1730287098032,3.61767691,2673.3,2672.9,0.11901948]
[1730287098240,4.42777691,2673.3,2672.9,0.11901948]
[1730287098765,4.42777691,2673.3,2672.8,0.7825]
[1730287100443,4.42777691,2673.3,2672.0,3.3742]
[1730287100444,3.61767691,2673.0,2672.0,1.1414]
[1730287100655,3.61767691,2672.7,2672.1,0.11143754]
[1730287100856,3.61767691,2672.4,2672.0,0.7672]
[1730287101228,3.61767691,2672.4,2671.8,0.7985]
[1730287102327,0.7745,2672.3,2671.8,0.7985]
[1730287104059,0.7745,2672.3,2671.9,0.1027869]
[1730287104218,0.7745,2672.3,2671.8,0.7985]
[1730287104420,0.7745,2672.3,2671.9,0.1027869]
[1730287104619,0.7745,2672.3,2671.8,0.7985]
[1730287104851,0.7745,2672.3,2671.9,0.1027869]
[1730287105071,0.7745,2672.3,2671.8,0.7985]
[1730287105484,0.7745,2672.3,2671.2,0.05614116]
[1730287105485,0.7745,2672.3,2671.9,0.1027869]
[1730287105663,3.61767691,2672.0,2671.9,0.1027869]
[1730287105968,3.61767691,2672.0,2671.2,0.88394116]
[1730287106282,3.61767691,2671.6,2671.2,0.05614116]
[1730287106639,3.61767691,2671.3,2671.2,0.05614116]
[1730287108868,3.61767691,2671.3,2670.6,0.824]
[1730287109303,3.61767691,2671.0,2670.6,0.824]
[1730287109515,3.61767691,2671.0,2670.4,0.7506]
[1730287110912,0.7949,2670.9,2670.4,0.7506]
[1730287112119,0.7949,2670.9,2669.7,0.01]
[1730287112416,0.7949,2670.9,2670.2,0.8083]
[1730287112624,3.61767691,2670.7,2670.2,0.8083]
[1730287112910,0.7949,2670.9,2670.3,0.09356894]
[1730287113116,3.61767691,2670.8,2670.3,0.09356894]
[1730287113623,3.61767691,2670.8,2670.2,0.8083]
[1730287113832,3.61767691,2670.8,2670.4,0.09359741]
[1730287114114,3.61767691,2670.8,2670.2,0.8083]
[1730287114475,4.36897691,2671.1,2670.3,0.16854451]
[1730287114675,4.36897691,2671.1,2670.4,0.7658]
[1730287114988,1.23,2671.3,2670.5,0.07488429]
[1730287115411,1.23,2671.3,2669.9,3.01]
[1730287115412,1.23,2671.3,2670.7,0.7658]
[1730287115827,1.23,2671.3,2670.8,0.09361165]
[1730287116045,1.23,2671.3,2670.7,0.7658]
[1730287116199,1.23,2671.3,2670.9,0.7506]
[1730287116699,1.23,2671.3,2671.0,0.09383919]
[1730287121768,1.23,2671.3,2671.1,0.55]
[1730287122144,1.23,2671.3,2671.2,0.09375379]
[1730287123073,0.8325,2671.9,2671.3,0.55]
[1730287123284,2.0632,2672.3,2671.5,0.55]
[1730287123579,2.0632,2672.3,2671.6,0.805]
[1730287123730,2.0632,2672.3,2671.6,0.8987111]
[1730287124169,1.23,2672.3,2671.6,0.8987111]
[1730287124379,1.23,2672.3,2671.7,0.55]
[1730287124558,1.23,2672.3,2671.7,0.74987111]
[1730287124972,1.23,2672.3,2672.0,0.7581]
[1730287125672,1.23,2672.3,2672.1,0.09359159]
[1730287127147,0.8023,2672.8,2672.1,0.09359159]
[1730287128557,2.0412,2673.2,2672.3,0.798]
[1730287128848,2.0412,2673.2,2672.4,0.16813539]
[1730287129775,1.23,2673.2,2672.5,1.3405]
[1730287129985,1.23,2673.2,2672.6,0.7905]
[1730287130169,1.23,2673.2,2672.8,0.7857]
[1730287130406,1.23,2673.2,2672.9,0.55]
[1730287130978,1.23,2673.2,2672.8,0.7857]
[1730287130979,4.42087691,2674.0,2673.0,0.87888762]
[1730287131376,3.61767691,2673.7,2673.0,0.87888762]
[1730287133828,3.61767691,2673.4,2673.0,0.09318762]
[1730287134126,3.61767691,2673.4,2672.7,0.8082]
[1730287137023,3.61767691,2673.1,2672.2,0.55]
[1730287137331,3.61767691,2673.1,2672.3,0.09307389]
[1730287138597,0.8269,2673.0,2672.1,0.8104]
[1730287139131,0.8269,2673.0,2672.2,0.09299425]
[1730287140335,0.8269,2673.0,2672.2,0.4889471]
[1730287140492,0.8269,2673.0,2672.2,0.09299425]
[1730287142599,3.61767691,2672.5,2672.2,0.09299425]
[1730287143030,3.61767691,2672.5,2672.1,0.8104]
[1730287145454,3.61767691,2672.5,2672.0,0.05613427]
[1730287151335,5.89,2673.2,2671.6,0.8055]
[1730287151336,3.61767691,2672.2,2671.6,0.8055]
[1730287151661,0.8057,2671.8,2670.7,0.8055]
[1730287151868,3.61767691,2671.6,2670.7,0.8055]
[1730287152036,3.61767691,2671.6,2670.8,0.0841272]
[1730287152366,3.61767691,2671.6,2670.9,0.0841272]
[1730287152726,3.61767691,2671.6,2670.7,0.8055]
[1730287153027,3.61767691,2671.6,2670.8,0.55]
[1730287153259,3.61767691,2671.6,2670.8,0.6342894]
[1730287154261,3.61767691,2671.3,2670.8,0.0842894]
[1730287154763,3.61767691,2671.3,2670.7,0.8055]
[1730287155166,0.7528,2671.2,2670.7,0.8055]
[1730287155324,3.61767691,2671.3,2670.7,0.8055]
[1730287157339,2.0281,2671.5,2670.7,0.8055]
[1730287157861,2.0281,2671.5,2670.8,0.08428655]
[1730287159956,1.23,2671.5,2670.8,0.08428655]
[1730287161825,3.61767691,2671.3,2670.8,0.08428655]
[1730287162236,3.61767691,2671.3,2670.7,0.8055]
[1730287163667,3.61767691,2671.3,2670.8,0.08454839]
[1730287164071,1.23,2671.5,2670.8,0.62488179]
[1730287164246,1.23,2671.5,2671.0,0.8063]
[1730287165575,1.23,2671.5,2670.8,0.55]
[1730287165576,1.23,2671.5,2671.2,0.8063]
[1730287166143,1.23,2671.5,2671.3,0.08454839]
[1730287166637,0.7971,2672.2,2671.3,1.42206509]
[1730287166875,3.61767691,2672.4,2671.5,0.7972]
[1730287167036,0.7664,2672.0,2671.4,0.08454839]
[1730287167246,0.7664,2672.0,2671.3,0.8268]
[1730287167442,0.7664,2672.0,2671.3,0.7768]
[1730287168052,3.61767691,2672.1,2671.3,0.7768]
[1730287168375,3.61767691,2672.4,2671.4,0.55]
[1730287168739,3.61767691,2672.4,2671.5,0.0748506]
[1730287168943,3.61767691,2672.4,2671.5,0.08455977]
[1730287169391,3.61767691,2672.4,2671.2,0.55]
[1730287169574,3.61767691,2672.4,2671.6,0.08455977]
[1730287169776,3.61767691,2672.4,2671.2,0.55]
[1730287169777,3.61767691,2672.4,2671.2,0.56]
[1730287170181,3.61767691,2672.4,2671.3,0.08455977]
[1730287170547,3.61767691,2672.4,2671.4,0.7792]
[1730287171250,3.61767691,2672.4,2671.5,0.08455977]
[1730287172070,3.61767691,2672.4,2671.5,0.08336129]
[1730287172367,3.61767691,2672.4,2671.4,0.7792]
[1730287172693,3.61767691,2672.4,2671.5,0.08451982]
[1730287172851,3.61767691,2672.4,2671.6,0.7633]
[1730287173051,3.61767691,2672.4,2671.5,0.15937529]
[1730287173052,3.61767691,2672.4,2671.8,0.7633]
[1730287174167,1.23,2672.6,2671.8,0.7633]
[1730287174567,1.23,2672.6,2672.0,0.7633]
[1730287175277,1.23,2672.6,2672.1,0.0841527]
[1730287176198,1.23,2672.6,2672.2,0.8327]
[1730287176689,1.23,2672.6,2672.4,0.8327]
[1730287177242,3.61767691,2673.2,2672.4,0.8327]
[1730287177403,0.58561158,2673.3,2672.5,0.07482863]
[1730287177690,0.58561158,2673.3,2672.5,0.8327]
[1730287178060,0.58561158,2673.3,2672.7,0.7671]
[1730287178693,0.58561158,2673.3,2672.8,0.08406735]
[1730287178867,0.58561158,2673.3,2672.7,0.7671]
[1730287179079,0.58561158,2673.3,2672.8,0.08402469]
[1730287179596,0.58561158,2673.3,2672.7,0.7671]
[1730287179959,0.58561158,2673.3,2672.8,0.08402469]
[1730287180472,3.61767691,2673.4,2672.7,0.7671]
[1730287181004,3.61767691,2673.4,2672.8,0.08395359]
[1730287181291,3.61767691,2673.4,2672.7,0.7671]
[1730287181497,3.61767691,2673.4,2672.8,0.08395074]
[1730287181696,3.61767691,2673.4,2672.7,0.7671]
[1730287181867,3.61767691,2673.4,2672.8,0.08395074]
[1730287182074,3.61767691,2673.4,2672.7,0.7671]
[1730287182298,3.61767691,2673.4,2672.8,0.08395074]
[1730287182597,3.61767691,2673.4,2672.7,0.7671]
[1730287182763,1.23,2673.5,2672.7,0.7671]
[1730287182960,1.23,2673.5,2672.8,0.08395074]
[1730287183160,1.23,2673.5,2672.8,0.87975074]
[1730287183410,1.23,2673.5,2672.8,0.7958]
[1730287183562,1.23,2673.5,2673.0,0.7958]
[1730287184157,1.23,2673.5,2673.1,0.08365211]
[1730287184358,1.23,2673.5,2673.2,0.8169]
[1730287185107,1.23,2673.5,2673.3,0.08365211]
[1730287185268,1.23,2673.5,2673.2,0.8169]
[1730287185467,1.23,2673.5,2673.3,0.08365211]
[1730287185685,1.23,2673.5,2673.2,0.8169]
[1730287186103,1.23,2673.5,2673.3,0.08365211]
[1730287186468,1.23,2673.5,2673.2,0.8169]
[1730287186688,1.23,2673.5,2673.3,0.08365211]
[1730287186892,1.23,2673.5,2673.2,0.8169]
[1730287187088,1.23,2673.5,2673.3,0.08349859]
[1730287187402,1.23,2673.5,2673.2,0.8169]
[1730287187812,1.23,2673.5,2673.3,0.08348437]
[1730287188305,1.23,2673.5,2673.2,0.8169]
[1730287188494,1.23,2673.5,2673.3,0.08348722]
[1730287188808,1.23,2673.5,2673.2,0.8169]
[1730287188981,0.58555412,2674.0,2673.5,0.55]
[1730287189166,0.58555412,2674.0,2673.6,0.8292]
[1730287189371,0.58555412,2674.0,2673.6,0.91264743]
[1730287193673,4.96923103,2674.0,2673.6,0.08344743]
[1730287194012,4.96923103,2674.0,2673.4,0.8086]
[1730287198388,4.96923103,2674.0,2673.5,0.08323424]
[1730287198584,4.96923103,2674.0,2673.4,0.8086]
[1730287200832,4.96923103,2674.0,2672.8,0.8304]
[1730287201024,3.61767691,2673.7,2673.5,0.08323424]
[1730287201322,3.61767691,2673.7,2672.8,0.8304]
[1730287201323,0.787,2673.6,2672.8,0.8304]
[1730287203733,0.787,2673.6,2672.9,0.08323424]
[1730287204044,0.787,2673.6,2672.8,0.8304]
[1730287204219,0.787,2673.6,2673.0,0.08323424]
[1730287204544,0.787,2673.6,2672.8,0.8304]
[1730287204848,0.787,2673.6,2672.9,0.08323424]
[1730287205046,3.61767691,2673.4,2672.8,0.8304]
[1730287205209,0.7854,2673.3,2673.0,0.08323424]
[1730287205409,0.7854,2673.3,2672.3,0.8242]
[1730287205612,0.7854,2673.3,2673.1,0.08323424]
[1730287205849,0.7854,2673.3,2672.3,0.8242]
[1730287206208,0.7854,2673.3,2672.4,0.08348152]
[1730287206447,3.61767691,2673.1,2672.4,0.08348152]
[1730287216046,3.61767691,2672.8,2672.4,0.08348152]
[1730287216358,0.8152,2672.7,2671.9,0.8321]
[1730287216544,1.23,2672.9,2671.9,0.8321]
[1730287216972,1.23,2672.9,2672.0,0.08182192]
[1730287218578,0.8152,2672.7,2672.0,0.08182192]
[1730287230546,0.8152,2672.7,2671.7,0.8231]
[1730287230989,0.8152,2672.7,2671.8,0.08200917]
[1730287231481,3.61767691,2672.5,2671.8,0.08200917]
[1730287231653,0.7784,2672.1,2671.4,0.7558]
[1730287231866,0.7784,2672.1,2671.9,0.08202336]
[1730287232070,0.7784,2672.1,2671.4,0.7558]
[1730287232250,0.7784,2672.1,2672.0,0.11787916]
[1730287232446,0.7784,2672.1,2671.4,0.7558]
[1730287232642,0.7784,2672.1,2672.0,0.11787916]
[1730287232851,0.7784,2672.1,2671.4,0.7558]
[1730287233082,0.7784,2672.1,2672.0,0.11787916]
[1730287233389,0.7784,2672.1,2671.4,0.7558]
[1730287233786,0.7784,2672.1,2671.5,0.11787916]
[1730287234102,0.7821,2672.4,2671.6,0.8072]
[1730287234794,0.7821,2672.4,2671.7,0.1179359]
[1730287235289,0.7821,2672.4,2671.7,0.55]
[1730287235615,0.7821,2672.4,2671.8,0.1179359]
[1730287235941,0.7821,2672.4,2671.6,0.8072]
[1730287237401,0.7973,2672.7,2671.7,0.7941]
[1730287239201,3.61767691,2672.5,2671.7,0.7941]
[1730287239371,0.7833,2672.4,2671.4,0.815]
[1730287239778,0.7833,2672.4,2671.5,0.11745487]
[1730287241116,0.7833,2672.4,2671.7,0.7804]
[1730287241613,0.7833,2672.4,2671.8,0.11748039]
[1730287243700,0.7641,2672.7,2671.8,0.11748039]
[1730287243901,0.7641,2672.7,2672.0,0.7984]
[1730287244325,0.7641,2672.7,2672.1,0.11742935]
[1730287244622,0.7641,2672.7,2672.1,0.19227102]
[1730287244798,0.8277,2672.9,2672.3,0.777]
[1730287244990,0.8277,2672.9,2672.4,0.11738682]
[1730287245638,1.23,2673.1,2672.4,0.11738682]
[1730287247422,1.23,2673.1,2672.4,0.19221637]
[1730287248251,1.23,2673.1,2672.4,0.11738682]
[1730287248447,1.23,2673.1,2672.4,0.19221637]
[1730287249168,0.7508,2673.0,2672.4,0.19221637]
[1730287249306,0.7508,2673.0,2672.4,0.11738682]
[1730287249750,1.23,2673.1,2672.4,0.19221641]
[1730287250636,1.23,2673.1,2672.6,0.8139]
[1730287250948,0.58560699,2673.2,2672.8,0.55]
[1730287251046,0.8276,2673.7,2672.9,0.7671]
[1730287251265,0.8276,2673.7,2672.9,0.88427704]
[1730287253261,0.8276,2673.4,2672.9,0.11717704]
[1730287253465,0.8326,2673.1,2672.4,0.7671]
[1730287253797,0.8326,2673.1,2673.0,0.11502737]
[1730287253947,0.8326,2673.1,2672.4,0.7671]
[1730287254376,0.8326,2673.1,2672.5,0.11502737]
[1730287258094,0.8326,2673.1,2672.2,0.55]
[1730287258351,0.8326,2673.1,2672.6,0.11510086]
[1730287258512,0.8326,2673.1,2672.1,0.7861]
[1730287258711,0.8326,2673.1,2672.7,0.11510369]
[1730287258926,0.8326,2673.1,2672.1,0.7861]
[1730287259130,0.8326,2673.1,2672.8,0.11510369]
[1730287259313,0.8326,2673.1,2672.1,0.7861]
[1730287259510,0.8326,2673.1,2672.9,0.11510369]
[1730287259716,0.8326,2673.1,2672.1,0.7861]
[1730287259915,0.8326,2673.1,2673.0,0.11510369]
[1730287260226,0.8326,2673.1,2672.1,0.7861]
[1730287260548,0.8326,2673.1,2673.0,0.11510369]
[1730287260754,0.8326,2673.1,2672.1,0.7861]
[1730287260951,0.8107,2672.8,2672.1,0.7861]
[1730287261102,0.8107,2672.8,2672.2,0.11513478]
[1730287261440,0.8107,2672.8,2671.9,0.7921]
[1730287261802,0.8107,2672.8,2672.3,0.11513478]
[1730287262009,0.8107,2672.8,2671.9,0.7921]
[1730287262352,1.24,2673.3,2671.0,0.50023879]
[1730287262353,3.61767691,2672.3,2672.0,0.11513478]
[1730287262708,3.61767691,2672.3,2671.3,0.8157]
[1730287262909,3.61767691,2672.3,2672.1,0.11523375]
[1730287263114,3.61767691,2672.3,2671.3,0.8157]
[1730287263309,0.7564,2672.5,2672.2,0.11523657]
[1730287263556,0.7564,2672.5,2671.2,0.01]
[1730287263557,0.7564,2672.5,2671.8,0.8157]
[1730287263925,0.7564,2672.5,2671.9,0.11523657]
[1730287264618,0.7564,2672.5,2671.9,0.19008256]
[1730287264824,0.7564,2672.5,2671.9,0.11523657]
[1730287273028,0.7564,2672.5,2671.8,0.8157]
[1730287273870,0.7564,2672.5,2671.9,0.11549387]
[1730287274039,0.7564,2672.5,2671.8,0.8157]
[1730287274580,0.7564,2672.5,2671.2,0.817]
[1730287274762,0.7564,2672.5,2671.1,0.9242]
[1730287275065,0.7564,2672.5,2671.5,0.55]
[1730287275649,3.61767691,2672.3,2671.6,0.11549387]
[1730287275858,0.7513,2672.2,2671.6,0.11549387]
[1730287276030,0.7513,2672.2,2671.4,0.817]
[1730287276236,0.7513,2672.2,2671.5,0.11554195]
[1730287276453,0.7513,2672.4,2671.6,0.89185771]
[1730287276827,0.7513,2672.4,2671.7,0.11554195]
[1730287277576,3.61767691,2672.6,2671.8,0.817]
[1730287278054,3.61767691,2672.6,2671.9,0.11554195]
[1730287278258,0.7513,2672.7,2672.0,0.817]
[1730287278875,4.36897691,2672.9,2672.1,0.11554195]
[1730287279077,4.36897691,2672.9,2672.2,0.817]
[1730287279457,4.36897691,2672.9,2672.3,0.11554195]
[1730287279754,4.36897691,2672.9,2672.2,0.817]
[1730287280158,4.36897691,2673.2,2672.4,0.817]
[1730287281298,0.7513,2673.2,2672.5,0.11543732]
[1730287283163,0.7513,2673.2,2672.6,0.7978]
[1730287283693,0.7513,2673.2,2672.7,0.11542036]
[1730287283903,0.7513,2673.2,2672.6,0.7978]
[1730287284190,0.7513,2673.2,2672.8,0.11542036]
[1730287284358,0.7513,2673.2,2672.6,0.7978]
[1730287284899,0.7513,2673.2,2672.7,0.11541753]
[1730287285206,3.61767691,2673.0,2672.3,0.7968]
[1730287291517,0.7513,2673.2,2672.3,0.7968]
[1730287291822,0.7953,2673.7,2672.7,0.55]
[1730287292009,0.58551442,2673.8,2672.9,0.7962]
[1730287292194,0.58551442,2673.8,2673.0,0.55]
[1730287292427,0.58551442,2673.8,2673.1,0.7962]
[1730287292724,0.58551442,2673.8,2673.1,0.91145351]
[1730287293729,0.58551442,2673.8,2673.3,0.8034]
[1730287294181,0.58551442,2673.8,2673.4,0.11525351]
[1730287294575,3.61767691,2673.9,2673.4,0.11525351]
[1730287295841,3.61767691,2673.9,2673.3,0.8034]
[1730287300000,3.61767691,2673.6,2673.3,0.8034]
[1730287300071,3.61767691,2673.6,2673.1,0.7854]
[1730287301286,3.61767691,2673.6,2673.0,0.05611288]
[1730287302275,3.61767691,2673.3,2673.0,0.05611288]
[1730287302455,4.43917691,2673.3,2672.7,0.7994]
[1730287303961,3.61767691,2673.0,2672.0,0.7994]